[Event "Late-Titled-Tuesday-Blitz-February-20-2024"]
[Site "Chess.com"]
[Date "2024.02.20"]
[Round "2"]
[White "dedpihto_v_kozhanom_palto"]
[Black "ChessFanNM"]
[Result "1-0"]
[WhiteElo "2690"]
[BlackElo "2319"]
[TimeControl "180+1"]
[EndTime "14:18:36 PST"]
[Termination "dedpihto_v_kozhanom_palto won by checkmate"]

1. c4 {[%clk 0:03:00.9]} 1... c6 {[%clk 0:02:57.2]} 2. d4 {[%clk 0:02:59.5]}
2... d5 {[%clk 0:02:55.8]} 3. Nf3 {[%clk 0:02:58.8]} 3... Nf6 {[%clk 0:02:53]}
4. Nc3 {[%clk 0:02:46.8]} 4... dxc4 {[%clk 0:02:52.3]} 5. a4 {[%clk 0:02:42.9]}
5... Bf5 {[%clk 0:02:51.7]} 6. e3 {[%clk 0:02:41.8]} 6... e6 {[%clk 0:02:52.1]}
7. Bxc4 {[%clk 0:02:42.1]} 7... Bb4 {[%clk 0:02:51.6]} 8. O-O {[%clk 0:02:42.5]}
8... O-O {[%clk 0:02:45.5]} 9. Bd2 {[%clk 0:02:29.2]} 9... a5 {[%clk 0:02:38.2]}
10. Ne2 {[%clk 0:02:25.1]} 10... Qe7 {[%clk 0:02:10.4]} 11. h3 {[%clk
0:02:17.3]} 11... Na6 {[%clk 0:02:06.3]} 12. Ng3 {[%clk 0:02:16.4]} 12... Bg6
{[%clk 0:02:05.4]} 13. Ne5 {[%clk 0:02:13]} 13... Rac8 {[%clk 0:01:54.3]} 14.
Nxg6 {[%clk 0:02:05.4]} 14... hxg6 {[%clk 0:01:53.3]} 15. Rc1 {[%clk 0:02:05.9]}
15... c5 {[%clk 0:01:48.8]} 16. Bc3 {[%clk 0:01:40.9]} 16... Rfd8 {[%clk
0:01:46.8]} 17. Qe2 {[%clk 0:01:39.1]} 17... Bxc3 {[%clk 0:01:13.3]} 18. bxc3
{[%clk 0:01:40]} 18... Nc7 {[%clk 0:00:52.4]} 19. Qb2 {[%clk 0:01:19.3]} 19...
Nce8 {[%clk 0:00:48.9]} 20. Rfd1 {[%clk 0:01:11.2]} 20... Nd6 {[%clk 0:00:48.5]}
21. Be2 {[%clk 0:01:10.9]} 21... e5 {[%clk 0:00:48.5]} 22. Bf3 {[%clk
0:01:01.1]} 22... cxd4 {[%clk 0:00:31.5]} 23. cxd4 {[%clk 0:00:58.5]} 23... exd4
{[%clk 0:00:28.6]} 24. Rxc8 {[%clk 0:00:55.1]} 24... Rxc8 {[%clk 0:00:27]} 25.
Qxd4 {[%clk 0:00:53.6]} 25... Nf5 {[%clk 0:00:24.2]} 26. Nxf5 {[%clk 0:00:50.3]}
26... gxf5 {[%clk 0:00:24.5]} 27. Qb6 {[%clk 0:00:49]} 27... Rc7 {[%clk
0:00:18.5]} 28. Qxa5 {[%clk 0:00:48.3]} 28... g6 {[%clk 0:00:18.1]} 29. Rb1
{[%clk 0:00:41.7]} 29... Ne4 {[%clk 0:00:16.2]} 30. Bxe4 {[%clk 0:00:41.8]}
30... fxe4 {[%clk 0:00:16.4]} 31. Qb6 {[%clk 0:00:34.3]} 31... Kg7 {[%clk
0:00:15.4]} 32. Qd4+ {[%clk 0:00:33.2]} 32... Kg8 {[%clk 0:00:13.6]} 33. Rd1
{[%clk 0:00:23.7]} 33... Kh7 {[%clk 0:00:10.5]} 34. g3 {[%clk 0:00:22.1]} 34...
Kg8 {[%clk 0:00:09.8]} 35. h4 {[%clk 0:00:21.7]} 35... Kh7 {[%clk 0:00:09.9]}
36. Kg2 {[%clk 0:00:22.3]} 36... Rc5 {[%clk 0:00:09.3]} 37. Qd8 {[%clk
0:00:18.4]} 37... Qxd8 {[%clk 0:00:08.4]} 38. Rxd8 {[%clk 0:00:19.3]} 38... Rc4
{[%clk 0:00:07.7]} 39. Rd4 {[%clk 0:00:15.6]} 39... Rc2 {[%clk 0:00:03.9]} 40.
Rxe4 {[%clk 0:00:15.5]} 40... Ra2 {[%clk 0:00:04.4]} 41. Rb4 {[%clk 0:00:12.7]}
41... Kg7 {[%clk 0:00:03.9]} 42. Kf3 {[%clk 0:00:13.2]} 42... Ra1 {[%clk
0:00:03.8]} 43. Kf4 {[%clk 0:00:13.2]} 43... b6 {[%clk 0:00:04.2]} 44. f3 {[%clk
0:00:13.1]} 44... Ra2 {[%clk 0:00:04.6]} 45. e4 {[%clk 0:00:13.3]} 45... Ra3
{[%clk 0:00:04.8]} 46. Rd4 {[%clk 0:00:06.7]} 46... Ra1 {[%clk 0:00:04.4]} 47.
Kg4 {[%clk 0:00:06.8]} 47... Rg1 {[%clk 0:00:01.1]} 48. Rb4 {[%clk 0:00:06.2]}
48... Ra1 {[%clk 0:00:01.3]} 49. Rxb6 {[%clk 0:00:04.6]} 49... Ra3 {[%clk
0:00:02.2]} 50. Rb4 {[%clk 0:00:04.7]} 50... Ra1 {[%clk 0:00:02.1]} 51. Kf4
{[%clk 0:00:05.2]} 51... Rg1 {[%clk 0:00:01.9]} 52. a5 {[%clk 0:00:04.3]} 52...
g5+ {[%clk 0:00:01.9]} 53. hxg5 {[%clk 0:00:04.3]} 53... Ra1 {[%clk 0:00:01.4]}
54. Rb5 {[%clk 0:00:04.9]} 54... Ra4 {[%clk 0:00:01.4]} 55. Kf5 {[%clk
0:00:04.9]} 55... Ra3 {[%clk 0:00:01.5]} 56. Kg4 {[%clk 0:00:05.1]} 56... Ra4
{[%clk 0:00:01.6]} 57. Rc5 {[%clk 0:00:04.9]} 57... Ra3 {[%clk 0:00:02]} 58. f4
{[%clk 0:00:05.5]} 58... Re3 {[%clk 0:00:01.8]} 59. e5 {[%clk 0:00:04.7]} 59...
Ra3 {[%clk 0:00:02.3]} 60. Rb5 {[%clk 0:00:05]} 60... Ra4 {[%clk 0:00:02.7]} 61.
Kf5 {[%clk 0:00:05.5]} 61... Ra3 {[%clk 0:00:02.1]} 62. g4 {[%clk 0:00:06.1]}
62... Ra1 {[%clk 0:00:02.1]} 63. Rb7 {[%clk 0:00:06.1]} 63... Rxa5 {[%clk
0:00:01.9]} 64. g6 {[%clk 0:00:06.8]} 64... Ra6 {[%clk 0:00:01.4]} 65. Rxf7+
{[%clk 0:00:07.2]} 65... Kg8 {[%clk 0:00:01.7]} 66. Rf6 {[%clk 0:00:08]} 66...
Ra5 {[%clk 0:00:01.7]} 67. Rd6 {[%clk 0:00:08.3]} 67... Ra7 {[%clk 0:00:01.4]}
68. Kf6 {[%clk 0:00:08.4]} 68... Kf8 {[%clk 0:00:01.4]} 69. Rd8# {[%clk
0:00:08.7]} 1-0

[Event "Late-Titled-Tuesday-Blitz-February-20-2024"]
[Site "Chess.com"]
[Date "2024.02.20"]
[Round "2"]
[White "bipe137"]
[Black "Abund"]
[Result "1/2-1/2"]
[WhiteElo "2523"]
[BlackElo "2792"]
[TimeControl "180+1"]
[EndTime "14:19:00 PST"]
[Termination "Game drawn by repetition"]

1. d4 {[%clk 0:03:00.9]} 1... d5 {[%clk 0:03:00]} 2. c4 {[%clk 0:03:00.3]} 2...
e6 {[%clk 0:03:00.6]} 3. Nc3 {[%clk 0:03:00.4]} 3... Nf6 {[%clk 0:03:00.9]} 4.
cxd5 {[%clk 0:03:00.6]} 4... exd5 {[%clk 0:03:01.8]} 5. Bg5 {[%clk 0:02:59.8]}
5... c6 {[%clk 0:03:02.2]} 6. e3 {[%clk 0:03:00]} 6... h6 {[%clk 0:03:02.6]} 7.
Bh4 {[%clk 0:02:59.2]} 7... Be7 {[%clk 0:03:02.9]} 8. Bd3 {[%clk 0:02:59]} 8...
O-O {[%clk 0:03:03.5]} 9. Nf3 {[%clk 0:02:58.7]} 9... Ne4 {[%clk 0:03:03.4]} 10.
Bxe7 {[%clk 0:02:57.6]} 10... Qxe7 {[%clk 0:03:04.3]} 11. Bxe4 {[%clk
0:02:55.5]} 11... dxe4 {[%clk 0:03:04.5]} 12. Nd2 {[%clk 0:02:55.5]} 12... f5
{[%clk 0:03:04.3]} 13. O-O {[%clk 0:02:55.2]} 13... Be6 {[%clk 0:03:04.7]} 14.
f3 {[%clk 0:02:54.6]} 14... exf3 {[%clk 0:03:00.7]} 15. Qxf3 {[%clk 0:02:54.8]}
15... Nd7 {[%clk 0:02:53.9]} 16. a3 {[%clk 0:02:50.8]} 16... Nf6 {[%clk
0:02:51.8]} 17. Rae1 {[%clk 0:02:48.4]} 17... Qd7 {[%clk 0:02:36.2]} 18. Qg3
{[%clk 0:02:42.9]} 18... Kh8 {[%clk 0:02:30.5]} 19. Nf3 {[%clk 0:02:41.4]} 19...
Kg8 {[%clk 0:02:02.6]} 20. Ne5 {[%clk 0:02:35.4]} 20... Qd6 {[%clk 0:01:59.9]}
21. Qh4 {[%clk 0:02:31.5]} 21... Nd7 {[%clk 0:01:51.6]} 22. Ng6 {[%clk
0:02:27.3]} 22... Rf6 {[%clk 0:01:51.2]} 23. Nf4 {[%clk 0:02:13.2]} 23... Kh7
{[%clk 0:01:18.9]} 24. Qf2 {[%clk 0:01:56.6]} 24... Bc4 {[%clk 0:01:16.2]} 25.
Nce2 {[%clk 0:01:46.1]} 25... Re8 {[%clk 0:01:16.2]} 26. Rc1 {[%clk 0:01:43.4]}
26... Ba6 {[%clk 0:01:01.6]} 27. Rfe1 {[%clk 0:01:42.7]} 27... Bxe2 {[%clk
0:01:01.4]} 28. Qxe2 {[%clk 0:01:38]} 28... Rf7 {[%clk 0:01:00]} 29. Qh5 {[%clk
0:01:32.4]} 29... Ree7 {[%clk 0:00:49.8]} 30. Qf3 {[%clk 0:01:23]} 30... Nf6
{[%clk 0:00:49]} 31. Nd3 {[%clk 0:01:22.4]} 31... Nd7 {[%clk 0:00:39.7]} 32. Kh1
{[%clk 0:01:20.1]} 32... Rf6 {[%clk 0:00:37.6]} 33. Nf4 {[%clk 0:01:15.2]} 33...
Re4 {[%clk 0:00:37.2]} 34. Nh5 {[%clk 0:01:12.8]} 34... Rf7 {[%clk 0:00:36.6]}
35. Ng3 {[%clk 0:01:12.5]} 35... Rh4 {[%clk 0:00:32.1]} 36. Nf1 {[%clk
0:01:03.5]} 36... Re4 {[%clk 0:00:30.5]} 37. Ng3 {[%clk 0:01:03.1]} 37... Rh4
{[%clk 0:00:30.5]} 38. Nf1 {[%clk 0:01:03.3]} 38... Qg6 {[%clk 0:00:30.2]} 39.
Rc2 {[%clk 0:00:58.1]} 39... Nf6 {[%clk 0:00:30.1]} 40. g3 {[%clk 0:00:46.5]}
40... Re4 {[%clk 0:00:26.7]} 41. Nd2 {[%clk 0:00:45.2]} 41... Re6 {[%clk
0:00:25.2]} 42. Rc5 {[%clk 0:00:45.2]} 42... Nd5 {[%clk 0:00:23]} 43. Qf2 {[%clk
0:00:35.4]} 43... Rfe7 {[%clk 0:00:16]} 44. Nf1 {[%clk 0:00:31]} 44... Qg4
{[%clk 0:00:14.6]} 45. Rc2 {[%clk 0:00:23.1]} 45... Qe4+ {[%clk 0:00:13.4]} 46.
Kg1 {[%clk 0:00:23.5]} 46... Rf6 {[%clk 0:00:12.1]} 47. Rce2 {[%clk 0:00:22]}
47... Qd3 {[%clk 0:00:11.8]} 48. Rd2 {[%clk 0:00:21.2]} 48... Qb5 {[%clk
0:00:11.2]} 49. Rde2 {[%clk 0:00:18.4]} 49... Qb3 {[%clk 0:00:11.3]} 50. Nd2
{[%clk 0:00:17.3]} 50... Qd3 {[%clk 0:00:10.5]} 51. Nf3 {[%clk 0:00:17.1]} 51...
Qe4 {[%clk 0:00:10.9]} 52. Ne5 {[%clk 0:00:17]} 52... Ree6 {[%clk 0:00:10.6]}
53. Qg2 {[%clk 0:00:16.4]} 53... Qxg2+ {[%clk 0:00:07.1]} 54. Kxg2 {[%clk
0:00:17.3]} 54... Re7 {[%clk 0:00:05.4]} 55. Rf2 {[%clk 0:00:15.9]} 55... Rf8
{[%clk 0:00:03.7]} 56. Rf3 {[%clk 0:00:16]} 56... g6 {[%clk 0:00:03.7]} 57. h3
{[%clk 0:00:15.7]} 57... Kg7 {[%clk 0:00:04.2]} 58. Ref1 {[%clk 0:00:15]} 58...
Rf6 {[%clk 0:00:03.1]} 59. g4 {[%clk 0:00:14.4]} 59... fxg4 {[%clk 0:00:04]} 60.
hxg4 {[%clk 0:00:14.7]} 60... g5 {[%clk 0:00:03.9]} 61. Rxf6 {[%clk 0:00:10.6]}
61... Nxf6 {[%clk 0:00:03.9]} 62. Rf5 {[%clk 0:00:10.9]} 62... Nd7 {[%clk
0:00:03.9]} 63. Nxd7 {[%clk 0:00:06.5]} 63... Rxd7 {[%clk 0:00:04.8]} 64. Rf3
{[%clk 0:00:03.3]} 64... Re7 {[%clk 0:00:04.9]} 65. Rh3 {[%clk 0:00:03.5]} 65...
Kg6 {[%clk 0:00:04.2]} 66. Kf3 {[%clk 0:00:03.9]} 66... Rf7+ {[%clk 0:00:04.4]}
67. Ke2 {[%clk 0:00:04.2]} 67... Re7 {[%clk 0:00:05]} 68. Rh1 {[%clk 0:00:04.5]}
68... Re4 {[%clk 0:00:05.1]} 69. Kf3 {[%clk 0:00:04.4]} 69... Re8 {[%clk
0:00:05.6]} 70. e4 {[%clk 0:00:04.9]} 70... Rf8+ {[%clk 0:00:05.4]} 71. Ke3
{[%clk 0:00:05.4]} 71... Rf4 {[%clk 0:00:06.1]} 72. Rg1 {[%clk 0:00:06]} 72...
Kf6 {[%clk 0:00:04.3]} 73. b4 {[%clk 0:00:06.3]} 73... a6 {[%clk 0:00:04]} 74.
a4 {[%clk 0:00:06.5]} 74... Kg6 {[%clk 0:00:04.6]} 75. a5 {[%clk 0:00:06.8]}
75... Kf6 {[%clk 0:00:04.8]} 76. Rh1 {[%clk 0:00:05]} 76... Kg6 {[%clk
0:00:05.3]} 77. Rg1 {[%clk 0:00:05.6]} 77... Kf6 {[%clk 0:00:05.6]} 78. Rh1
{[%clk 0:00:06]} 78... Kg6 {[%clk 0:00:05.4]} 79. Rg1 {[%clk 0:00:06.5]} 1/2-1/2

[Event "Late-Titled-Tuesday-Blitz-February-20-2024"]
[Site "Chess.com"]
[Date "2024.02.20"]
[Round "2"]
[White "dropstoneDP"]
[Black "NoHeThTo"]
[Result "1-0"]
[WhiteElo "3016"]
[BlackElo "2607"]
[TimeControl "180+1"]
[EndTime "14:19:11 PST"]
[Termination "dropstoneDP won by resignation"]

1. e4 {[%clk 0:03:00.9]} 1... c5 {[%clk 0:02:59.3]} 2. Nf3 {[%clk 0:03:01.2]}
2... g6 {[%clk 0:02:59.4]} 3. Bc4 {[%clk 0:02:59.8]} 3... Bg7 {[%clk 0:02:59.5]}
4. c3 {[%clk 0:03:00.1]} 4... e6 {[%clk 0:02:58.8]} 5. d4 {[%clk 0:02:59.3]}
5... cxd4 {[%clk 0:02:59.7]} 6. cxd4 {[%clk 0:03:00.2]} 6... d5 {[%clk
0:03:00.2]} 7. exd5 {[%clk 0:03:00]} 7... exd5 {[%clk 0:03:01.1]} 8. Bb3 {[%clk
0:03:00.1]} 8... Ne7 {[%clk 0:02:58.1]} 9. Nc3 {[%clk 0:03:00.2]} 9... h6 {[%clk
0:02:55.3]} 10. h3 {[%clk 0:03:00.2]} 10... O-O {[%clk 0:02:54.4]} 11. O-O
{[%clk 0:03:00.8]} 11... Nbc6 {[%clk 0:02:55]} 12. Re1 {[%clk 0:03:00.8]} 12...
Be6 {[%clk 0:02:54.5]} 13. Bf4 {[%clk 0:02:57.2]} 13... Nf5 {[%clk 0:02:46]} 14.
Qd2 {[%clk 0:02:56.9]} 14... Nfxd4 {[%clk 0:02:32.1]} 15. Nxd4 {[%clk
0:02:56.5]} 15... Nxd4 {[%clk 0:02:33]} 16. Bxh6 {[%clk 0:02:53.3]} 16... Nxb3
{[%clk 0:02:32.9]} 17. axb3 {[%clk 0:02:52.8]} 17... Bxh6 {[%clk 0:02:33.4]} 18.
Qxh6 {[%clk 0:02:52.3]} 18... Qf6 {[%clk 0:02:33.8]} 19. Ra4 {[%clk 0:02:45.3]}
19... Rfd8 {[%clk 0:02:03.5]} 20. Nb5 {[%clk 0:02:34.2]} 20... d4 {[%clk
0:01:24.5]} 21. Nc7 {[%clk 0:02:28.4]} 21... Bd7 {[%clk 0:01:17.4]} 22. Nd5
{[%clk 0:02:24.1]} 22... Qg7 {[%clk 0:01:14.8]} 23. Qxg7+ {[%clk 0:01:52.1]}
23... Kxg7 {[%clk 0:01:15.2]} 24. Rxd4 {[%clk 0:01:52.7]} 24... Be6 {[%clk
0:01:15.7]} 25. Red1 {[%clk 0:01:52.7]} 25... Rac8 {[%clk 0:01:12.9]} 26. Nc7
{[%clk 0:01:49.4]} 26... Rxd4 {[%clk 0:01:09.8]} 27. Nxe6+ {[%clk 0:01:49.3]}
27... fxe6 {[%clk 0:01:09.4]} 28. Rxd4 {[%clk 0:01:50.2]} 28... Kf6 {[%clk
0:01:06.9]} 29. Rd7 {[%clk 0:01:47.6]} 29... Rc2 {[%clk 0:01:05.7]} 30. Rxb7
{[%clk 0:01:45.8]} 30... Rxb2 {[%clk 0:01:05.9]} 31. h4 {[%clk 0:01:43.8]} 31...
a5 {[%clk 0:01:02.2]} 32. Rb5 {[%clk 0:01:37.4]} 32... Ra2 {[%clk 0:00:58.2]}
33. g4 {[%clk 0:01:16.9]} 33... a4 {[%clk 0:00:42.8]} 34. g5+ {[%clk 0:01:16.7]}
34... Kf7 {[%clk 0:00:42.3]} 35. Kg2 {[%clk 0:01:15.6]} 35... a3 {[%clk
0:00:32.7]} 36. Ra5 {[%clk 0:01:15.2]} 36... Ra1 {[%clk 0:00:32.5]} 37. Kg3
{[%clk 0:01:01.5]} 37... a2 {[%clk 0:00:27.2]} 38. Ra7+ {[%clk 0:01:00.1]} 38...
Kf8 {[%clk 0:00:26]} 39. Kg2 {[%clk 0:01:00.2]} 39... Rb1 {[%clk 0:00:17.2]} 40.
Rxa2 {[%clk 0:00:58.5]} 40... Rxb3 {[%clk 0:00:17.6]} 41. Ra8+ {[%clk
0:00:56.5]} 41... Kf7 {[%clk 0:00:16.9]} 42. Ra7+ {[%clk 0:00:57.1]} 42... Kf8
{[%clk 0:00:17.1]} 43. Ra4 {[%clk 0:00:54]} 43... Rc3 {[%clk 0:00:17]} 44. Rf4+
{[%clk 0:00:53.7]} 44... Kg7 {[%clk 0:00:16.7]} 45. Rf6 {[%clk 0:00:50.9]} 45...
e5 {[%clk 0:00:15.7]} 46. Re6 {[%clk 0:00:50.1]} 46... Rc4 {[%clk 0:00:15.6]}
47. Kg3 {[%clk 0:00:49.6]} 47... e4 {[%clk 0:00:15.6]} 48. Re7+ {[%clk
0:00:48.8]} 48... Kg8 {[%clk 0:00:15.6]} 49. Re5 {[%clk 0:00:49.4]} 49... Kf7
{[%clk 0:00:15.5]} 50. Rb5 {[%clk 0:00:46.1]} 50... Rc3+ {[%clk 0:00:14.6]} 51.
Kg2 {[%clk 0:00:46]} 51... Rc4 {[%clk 0:00:13.3]} 52. Rb7+ {[%clk 0:00:46.1]}
52... Kf8 {[%clk 0:00:12.6]} 53. Rb6 {[%clk 0:00:46.1]} 53... Kf7 {[%clk
0:00:12.3]} 54. Rf6+ {[%clk 0:00:46.4]} 54... Kg7 {[%clk 0:00:12.8]} 55. Rf4
{[%clk 0:00:47.1]} 55... Ra4 {[%clk 0:00:13]} 56. Kg3 {[%clk 0:00:46.9]} 56...
Ra3+ {[%clk 0:00:13.3]} 57. Kg4 {[%clk 0:00:46.4]} 57... e3 {[%clk 0:00:13.9]}
58. fxe3 {[%clk 0:00:36]} 58... Rxe3 {[%clk 0:00:14.8]} 59. Rb4 {[%clk
0:00:36.6]} 59... Rc3 {[%clk 0:00:13.6]} 60. Kf4 {[%clk 0:00:36.7]} 60... Rc5
{[%clk 0:00:13.1]} 61. Rd4 {[%clk 0:00:36.4]} 61... Rf5+ {[%clk 0:00:13.3]} 62.
Ke4 {[%clk 0:00:36.4]} 62... Rf1 {[%clk 0:00:12.6]} 63. Ke5 {[%clk 0:00:36.5]}
63... Re1+ {[%clk 0:00:11.6]} 64. Kd6 {[%clk 0:00:34.9]} 64... Rh1 {[%clk
0:00:11.3]} 65. Re4 {[%clk 0:00:33.2]} 65... Kf7 {[%clk 0:00:10.1]} 66. Rf4+
{[%clk 0:00:30.7]} 66... Kg7 {[%clk 0:00:10.3]} 67. Rc4 {[%clk 0:00:30.7]} 67...
Rd1+ {[%clk 0:00:10]} 68. Ke5 {[%clk 0:00:31.1]} 68... Re1+ {[%clk 0:00:10.4]}
69. Re4 {[%clk 0:00:31.3]} 69... Ra1 {[%clk 0:00:10.7]} 70. Rd4 {[%clk
0:00:30.5]} 70... Ra5+ {[%clk 0:00:10.6]} 71. Ke6 {[%clk 0:00:30.2]} 71... Ra6+
{[%clk 0:00:10.5]} 72. Rd6 {[%clk 0:00:29.9]} 72... Ra4 {[%clk 0:00:10.2]} 73.
Rd7+ {[%clk 0:00:30.3]} 73... Kg8 {[%clk 0:00:08.7]} 74. Kf6 {[%clk 0:00:30.7]}
74... Ra6+ {[%clk 0:00:07.8]} 75. Ke5 {[%clk 0:00:31]} 75... Kf8 {[%clk
0:00:07.5]} 76. Rd6 {[%clk 0:00:31]} 76... Ra4 {[%clk 0:00:07.3]} 77. Kf6 {[%clk
0:00:30.1]} 77... Rf4+ {[%clk 0:00:05.8]} 78. Kxg6 {[%clk 0:00:30.3]} 78... Rxh4
{[%clk 0:00:06.7]} 79. Rd8+ {[%clk 0:00:30.6]} 79... Ke7 {[%clk 0:00:07.3]} 80.
Ra8 {[%clk 0:00:31.1]} 80... Rg4 {[%clk 0:00:07.3]} 81. Rg8 {[%clk 0:00:25.3]}
81... Rg1 {[%clk 0:00:06.2]} 82. Kh7 {[%clk 0:00:23.8]} 82... Kf7 {[%clk
0:00:05.8]} 83. g6+ {[%clk 0:00:23.9]} 83... Kf6 {[%clk 0:00:05.4]} 84. Rf8+
{[%clk 0:00:24.3]} 84... Ke7 {[%clk 0:00:05.8]} 85. Rf7+ {[%clk 0:00:21.5]}
85... Ke6 {[%clk 0:00:05.2]} 86. Kg7 {[%clk 0:00:21.5]} 86... Rg2 {[%clk
0:00:05.3]} 87. Rf3 {[%clk 0:00:21.3]} 87... Rg1 {[%clk 0:00:05.2]} 88. Rf2
{[%clk 0:00:20.3]} 88... Rg3 {[%clk 0:00:05.2]} 89. Re2+ {[%clk 0:00:19.6]}
89... Kf5 {[%clk 0:00:04.9]} 90. Kf7 {[%clk 0:00:20.2]} 1-0

[Event "Late-Titled-Tuesday-Blitz-February-20-2024"]
[Site "Chess.com"]
[Date "2024.02.20"]
[Round "2"]
[White "ahkashefi2800"]
[Black "ProphetReborn"]
[Result "1/2-1/2"]
[WhiteElo "2538"]
[BlackElo "2840"]
[TimeControl "180+1"]
[EndTime "14:19:32 PST"]
[Termination "Game drawn by repetition"]

1. Nf3 {[%clk 0:02:58.9]} 1... Nf6 {[%clk 0:02:56.6]} 2. g3 {[%clk 0:02:58.7]}
2... b6 {[%clk 0:02:55.8]} 3. Bg2 {[%clk 0:02:58.7]} 3... Bb7 {[%clk 0:02:56.4]}
4. O-O {[%clk 0:02:59.2]} 4... e6 {[%clk 0:02:56.6]} 5. d4 {[%clk 0:02:59.7]}
5... Be7 {[%clk 0:02:56.2]} 6. Bg5 {[%clk 0:02:59.9]} 6... O-O {[%clk
0:02:56.1]} 7. c3 {[%clk 0:02:57]} 7... c5 {[%clk 0:02:54]} 8. Qc2 {[%clk
0:02:54.7]} 8... Nc6 {[%clk 0:02:53.8]} 9. e3 {[%clk 0:02:51.9]} 9... Rc8 {[%clk
0:02:53.5]} 10. Nbd2 {[%clk 0:02:46.7]} 10... h6 {[%clk 0:02:51.1]} 11. Bxf6
{[%clk 0:02:46.8]} 11... Bxf6 {[%clk 0:02:52]} 12. Qd3 {[%clk 0:02:46]} 12... d5
{[%clk 0:02:49.4]} 13. Rfe1 {[%clk 0:02:45.5]} 13... Qd7 {[%clk 0:02:47.4]} 14.
Rad1 {[%clk 0:02:44.7]} 14... Rfe8 {[%clk 0:02:46.3]} 15. dxc5 {[%clk
0:02:28.8]} 15... bxc5 {[%clk 0:02:44.8]} 16. e4 {[%clk 0:02:27.4]} 16... d4
{[%clk 0:02:44.2]} 17. e5 {[%clk 0:02:23.3]} 17... Be7 {[%clk 0:02:43.8]} 18.
Nb3 {[%clk 0:02:05.9]} 18... Red8 {[%clk 0:02:32.6]} 19. cxd4 {[%clk 0:02:04.6]}
19... cxd4 {[%clk 0:02:17.4]} 20. Nfxd4 {[%clk 0:01:28.6]} 20... Nb4 {[%clk
0:02:15.5]} 21. Qb1 {[%clk 0:01:25.7]} 21... Bxg2 {[%clk 0:02:11.5]} 22. Kxg2
{[%clk 0:01:26]} 22... Qb7+ {[%clk 0:02:11.2]} 23. Kg1 {[%clk 0:01:19.6]} 23...
Rd5 {[%clk 0:02:11.6]} 24. a3 {[%clk 0:01:11.6]} 24... Na6 {[%clk 0:02:11.3]}
25. Qe4 {[%clk 0:01:01.9]} 25... Rcd8 {[%clk 0:02:10.4]} 26. Na5 {[%clk
0:00:57.4]} 26... Qxb2 {[%clk 0:02:07]} 27. Nac6 {[%clk 0:00:53.6]} 27... R8d7
{[%clk 0:02:05.9]} 28. Nxe7+ {[%clk 0:00:51.8]} 28... Rxe7 {[%clk 0:02:06.8]}
29. Nf5 {[%clk 0:00:49.2]} 29... Re8 {[%clk 0:01:09.7]} 30. Rxd5 {[%clk
0:00:47.9]} 30... exf5 {[%clk 0:01:10.6]} 31. Qxf5 {[%clk 0:00:45.7]} 31... Nb8
{[%clk 0:01:09.7]} 32. e6 {[%clk 0:00:43.5]} 32... fxe6 {[%clk 0:01:04.2]} 33.
Rxe6 {[%clk 0:00:43.5]} 33... Rf8 {[%clk 0:01:04.7]} 34. Qd3 {[%clk 0:00:29.3]}
34... Qxf2+ {[%clk 0:01:04.4]} 35. Kh1 {[%clk 0:00:29.7]} 35... Qf7 {[%clk
0:01:05.3]} 36. Rde5 {[%clk 0:00:25.1]} 36... Nd7 {[%clk 0:01:02.6]} 37. Re1
{[%clk 0:00:23.5]} 37... Nc5 {[%clk 0:01:02.7]} 38. Qe3 {[%clk 0:00:23]} 38...
Qb7+ {[%clk 0:00:54.1]} 39. Kg1 {[%clk 0:00:19.3]} 39... Nxe6 {[%clk 0:00:54.5]}
40. Qxe6+ {[%clk 0:00:19.6]} 40... Kh8 {[%clk 0:00:55.2]} 41. Qe3 {[%clk
0:00:18.7]} 41... Rf3 {[%clk 0:00:52.1]} 42. Qe8+ {[%clk 0:00:18.3]} 42... Kh7
{[%clk 0:00:52.7]} 43. a4 {[%clk 0:00:18.5]} 43... Qb6+ {[%clk 0:00:40.8]} 44.
Kg2 {[%clk 0:00:18.4]} 44... Rf2+ {[%clk 0:00:40.5]} 45. Kh3 {[%clk 0:00:16.7]}
45... Rf5 {[%clk 0:00:35]} 46. Qe4 {[%clk 0:00:16.5]} 46... Qg6 {[%clk
0:00:35.2]} 47. Kg2 {[%clk 0:00:15.7]} 47... h5 {[%clk 0:00:31]} 48. Re2 {[%clk
0:00:16.1]} 48... Ra5 {[%clk 0:00:25.8]} 49. Qxg6+ {[%clk 0:00:15.9]} 49... Kxg6
{[%clk 0:00:26.7]} 50. Re4 {[%clk 0:00:16.8]} 50... Kf5 {[%clk 0:00:26.8]} 51.
Rf4+ {[%clk 0:00:17.2]} 51... Ke5 {[%clk 0:00:27.3]} 52. h4 {[%clk 0:00:17.5]}
52... g6 {[%clk 0:00:27.4]} 53. Kf3 {[%clk 0:00:17.9]} 53... Rc5 {[%clk
0:00:27.5]} 54. Re4+ {[%clk 0:00:18.3]} 54... Kd6 {[%clk 0:00:26.5]} 55. Rd4+
{[%clk 0:00:18.3]} 55... Ke6 {[%clk 0:00:26.4]} 56. Re4+ {[%clk 0:00:18.3]}
56... Kf6 {[%clk 0:00:25.3]} 57. Kf4 {[%clk 0:00:17]} 57... Rc1 {[%clk
0:00:22.6]} 58. Rd4 {[%clk 0:00:15.7]} 58... Rf1+ {[%clk 0:00:21.9]} 59. Ke3
{[%clk 0:00:15.8]} 59... Ke5 {[%clk 0:00:21.6]} 60. Re4+ {[%clk 0:00:15.8]}
60... Kf5 {[%clk 0:00:22.1]} 61. Rc4 {[%clk 0:00:15.4]} 61... Ra1 {[%clk
0:00:20.1]} 62. Kf3 {[%clk 0:00:15.6]} 62... Ra3+ {[%clk 0:00:19.9]} 63. Kg2
{[%clk 0:00:16.1]} 63... Ke5 {[%clk 0:00:19.9]} 64. Rc5+ {[%clk 0:00:16.2]}
64... Kd4 {[%clk 0:00:20.2]} 65. Ra5 {[%clk 0:00:16.6]} 65... Ke4 {[%clk
0:00:20.3]} 66. Rxa7 {[%clk 0:00:16.4]} 66... Ra2+ {[%clk 0:00:20.9]} 67. Kh3
{[%clk 0:00:16.8]} 67... Ra1 {[%clk 0:00:20.4]} 68. Rf7 {[%clk 0:00:16.8]} 68...
Ke5 {[%clk 0:00:18.9]} 69. Rf4 {[%clk 0:00:16.9]} 69... Ra2 {[%clk 0:00:19.1]}
70. Rb4 {[%clk 0:00:16.9]} 70... Ra1 {[%clk 0:00:19]} 71. Rb5+ {[%clk
0:00:17.2]} 71... Ke4 {[%clk 0:00:18.5]} 72. a5 {[%clk 0:00:16.8]} 72... Kf3
{[%clk 0:00:17.9]} 73. Rb3+ {[%clk 0:00:16.2]} 73... Kf2 {[%clk 0:00:18.2]} 74.
Rb2+ {[%clk 0:00:15.8]} 74... Kf3 {[%clk 0:00:18.4]} 75. Rb3+ {[%clk 0:00:15.7]}
75... Kf2 {[%clk 0:00:18.9]} 76. Kh2 {[%clk 0:00:10.5]} 76... Rxa5 {[%clk
0:00:17.9]} 77. Rb6 {[%clk 0:00:10.8]} 77... g5 {[%clk 0:00:18.1]} 78. Rf6+
{[%clk 0:00:10.2]} 78... Ke3 {[%clk 0:00:18.1]} 79. hxg5 {[%clk 0:00:10.6]}
79... Rxg5 {[%clk 0:00:18.5]} 80. Kh3 {[%clk 0:00:11.1]} 80... Ke4 {[%clk
0:00:18.7]} 81. Kh4 {[%clk 0:00:11]} 81... Rg4+ {[%clk 0:00:19.2]} 82. Kh3
{[%clk 0:00:11.5]} 82... Rg5 {[%clk 0:00:19.8]} 83. Rf4+ {[%clk 0:00:11.6]}
83... Ke5 {[%clk 0:00:20]} 84. Kh4 {[%clk 0:00:12.2]} 84... Rg8 {[%clk
0:00:18.8]} 85. Rf3 {[%clk 0:00:12.5]} 85... Ke4 {[%clk 0:00:18.3]} 86. Rf4+
{[%clk 0:00:11.8]} 86... Ke5 {[%clk 0:00:18.6]} 87. Rf3 {[%clk 0:00:11.7]} 87...
Ke4 {[%clk 0:00:19.2]} 88. Ra3 {[%clk 0:00:11.9]} 88... Kf5 {[%clk 0:00:19.4]}
89. Ra5+ {[%clk 0:00:11.7]} 89... Kf6 {[%clk 0:00:19.4]} 90. Rxh5 {[%clk
0:00:11]} 90... Rd8 {[%clk 0:00:20]} 91. g4 {[%clk 0:00:10.5]} 91... Rd1 {[%clk
0:00:19.7]} 92. Rh6+ {[%clk 0:00:10.9]} 92... Kg7 {[%clk 0:00:20.1]} 93. Ra6
{[%clk 0:00:11]} 93... Rd5 {[%clk 0:00:20]} 94. Ra7+ {[%clk 0:00:10.4]} 94...
Kg6 {[%clk 0:00:20]} 95. Ra6+ {[%clk 0:00:10.9]} 95... Kg7 {[%clk 0:00:20.4]}
96. Rb6 {[%clk 0:00:10.2]} 96... Rc5 {[%clk 0:00:18.6]} 97. Kg3 {[%clk
0:00:10.6]} 97... Rc4 {[%clk 0:00:18.5]} 98. Kh4 {[%clk 0:00:10.5]} 98... Rc5
{[%clk 0:00:18.8]} 99. Ra6 {[%clk 0:00:10.6]} 99... Rd5 {[%clk 0:00:18.9]}
1/2-1/2